fUSD/lending_fUSD_20260213
["ID","MTS","AMOUNT","RATE_DAILY","PERIOD"]
[405290177,1770948632736,-500.0,8.797e-05,2]
[405290178,1770948632745,-500.0,8.797e-05,2]
[405290179,1770948632755,-500.0,8.797e-05,2]
[405290180,1770948632765,-500.0,8.797e-05,2]
[405290181,1770948632774,-500.0,8.797e-05,2]
[405290182,1770948632784,-500.0,8.797e-05,2]
[405290183,1770948632794,-500.0,8.797e-05,2]
[405290184,1770948632803,-500.0,8.797e-05,2]
[405290185,1770948632813,-500.0,8.797e-05,2]
[405290186,1770948632822,-500.0,8.797e-05,2]
[405290187,1770948632831,-500.0,8.797e-05,2]
[405290188,1770948632841,-500.0,8.797e-05,2]
[405290189,1770948632851,-500.0,8.797e-05,2]
[405290190,1770948632861,-500.0,8.797e-05,2]
[405290191,1770948632870,-500.0,8.797e-05,2]
[405290192,1770948632880,-500.0,8.797e-05,2]
[405290193,1770948632889,-500.0,8.797e-05,2]
[405290194,1770948632900,-500.0,8.797e-05,2]
[405290195,1770948632920,-500.0,8.797e-05,2]
[405290196,1770948632932,-500.0,8.797e-05,2]
[405290197,1770948632941,-500.0,8.797e-05,2]
[405290198,1770948632951,-500.0,8.797e-05,2]
[405290199,1770948632960,-500.0,8.797e-05,2]
[405290200,1770948632969,-500.0,8.797e-05,2]
[405290201,1770948632979,-500.0,8.797e-05,2]
[405290202,1770948632991,-500.0,8.797e-05,2]
[405290203,1770948633000,-500.0,8.797e-05,2]
[405290204,1770948633010,-500.0,8.797e-05,2]
[405290205,1770948633019,-500.0,8.797e-05,2]
[405290206,1770948633029,-500.0,8.797e-05,2]
[405290207,1770948633039,-500.0,8.797e-05,2]
[405290208,1770948633049,-500.0,8.797e-05,2]
[405290209,1770948633058,-500.0,8.797e-05,2]
[405290210,1770948633068,-500.0,8.797e-05,2]
[405290211,1770948633077,-500.0,8.797e-05,2]
[405290212,1770948633087,-500.0,8.797e-05,2]
[405290213,1770948633097,-500.0,8.797e-05,2]
[405290214,1770948633107,-500.0,8.797e-05,2]
[405290215,1770948633117,-500.0,8.797e-05,2]
[405290216,1770948633127,-500.0,8.797e-05,2]
[405290217,1770948633137,-500.0,8.797e-05,2]
[405290218,1770948633147,-500.0,8.797e-05,2]
[405290219,1770948633157,-500.0,8.797e-05,2]
[405290220,1770948633167,-500.0,8.797e-05,2]
[405290221,1770948633176,-500.0,8.797e-05,2]
[405290222,1770948633186,-500.0,8.797e-05,2]
[405290223,1770948633196,-500.0,8.797e-05,2]
[405290224,1770948633206,-500.0,8.797e-05,2]
[405290225,1770948633216,-500.0,8.797e-05,2]
[405290226,1770948633226,-500.0,8.797e-05,2]
[405290227,1770948633236,-500.0,8.797e-05,2]
[405290228,1770948633246,-500.0,8.797e-05,2]
[405290229,1770948633255,-500.0,8.797e-05,2]
[405290230,1770948633265,-500.0,8.797e-05,2]
[405290231,1770948633274,-500.0,8.797e-05,2]
[405290232,1770948633284,-500.0,8.797e-05,2]
[405290233,1770948633293,-500.0,8.797e-05,2]
[405290234,1770948633303,-500.0,8.797e-05,2]
[405290235,1770948633312,-500.0,8.797e-05,2]
[405290236,1770948633321,-500.0,8.797e-05,2]
[405290237,1770948633331,-500.0,8.797e-05,2]
[405290238,1770948633340,-500.0,8.797e-05,2]
[405290239,1770948633350,-500.0,8.797e-05,2]
[405290240,1770948633360,-500.0,8.797e-05,2]
[405290241,1770948633369,-500.0,8.797e-05,2]
[405290242,1770948633379,-500.0,8.797e-05,2]
[405290243,1770948633388,-500.0,8.797e-05,2]
[405290244,1770948633398,-500.0,8.797e-05,2]
[405290245,1770948633408,-500.0,8.797e-05,2]
[405290246,1770948633418,-470.0,8.797e-05,2]
[405290247,1770948633427,-500.0,8.797e-05,2]
[405290248,1770948633437,-235.83064809,8.797e-05,2]
[405290249,1770948633447,-150.99,8.799e-05,2]
[405290250,1770948633457,-150.99,8.799e-05,2]
[405290251,1770948633467,-9999.99,8.799e-05,2]
[405290252,1770948633477,-928.78213873,8.799e-05,2]
[405290253,1770948633487,-554.89080403,8.843e-05,2]
[405290254,1770948633496,-500.0,8.843e-05,2]
[405290255,1770948633506,-500.0,8.843e-05,2]
[405290256,1770948633516,-500.0,8.843e-05,2]
[405290257,1770948633526,-351.64327848,8.843e-05,2]
[405290258,1770948633536,-162.2185185,8.843e-05,2]
[405290259,1770948633546,-500.0,8.843e-05,2]
[405290260,1770948633556,-200.0,8.843e-05,2]
[405290261,1770948633566,-1687.0,8.843e-05,2]
[405290262,1770948633576,-463.52072258,8.843e-05,2]
[405290263,1770948633585,-500.0,8.843e-05,2]
[405290264,1770948633595,-852.40890896,8.866e-05,2]
[405290265,1770948633604,-261.46845798,8.896e-05,2]
[405290266,1770948633614,-605.86923825,8.897e-05,2]
[405290267,1770948633623,-263.48500607,8.898e-05,2]
[405290268,1770948633632,-500.0,8.898e-05,2]
[405290269,1770948633642,-500.0,8.898e-05,2]
[405290270,1770948633651,-500.0,8.898e-05,2]
[405290271,1770948633660,-200.0,8.898e-05,2]
[405290272,1770948633670,-1687.0,8.898e-05,2]
[405290273,1770948633680,-500.0,8.898e-05,2]
[405290274,1770948633689,-500.0,8.953e-05,2]
[405290275,1770948633699,-500.0,8.953e-05,2]
[405290276,1770948633708,-500.0,8.953e-05,2]
[405290277,1770948633718,-200.0,8.953e-05,2]
[405290278,1770948633728,-1687.0,8.953e-05,2]
[405290279,1770948633738,-500.0,8.953e-05,2]
[405290280,1770948633747,-500.0,8.953e-05,2]
[405290281,1770948633758,-32001.12778696,8.999e-05,2]
[405290282,1770948633767,-500.0,9.008e-05,2]
[405290283,1770948633777,-500.0,9.008e-05,2]
[405290284,1770948633787,-500.0,9.008e-05,2]
[405290285,1770948633797,-200.0,9.008e-05,2]
[405290286,1770948633808,-1687.0,9.008e-05,2]
[405290287,1770948633819,-500.0,9.008e-05,2]
[405290288,1770948633829,-697.39,9.058e-05,2]
[405290289,1770948633840,-500.0,9.062e-05,2]
[405290290,1770948633849,-500.0,9.062e-05,2]
[405290291,1770948633859,-500.0,9.062e-05,2]
[405290292,1770948633870,-200.0,9.062e-05,2]
[405290293,1770948633881,-1687.0,9.062e-05,2]
[405290294,1770948633893,-296.0823075,9.062e-05,2]
[405290295,1770948633904,-500.0,9.117e-05,2]
[405290296,1770948633917,-500.0,9.117e-05,2]
[405290297,1770948633926,-500.0,9.117e-05,2]
[405290298,1770948633935,-200.0,9.117e-05,2]
[405290299,1770948633945,-1687.0,9.117e-05,2]
[405290300,1770948633954,-500.0,9.172e-05,2]
[405290301,1770948633964,-222.18597751,9.172e-05,2]
[405290302,1770948633973,-500.0,9.172e-05,2]
[405290303,1770948633984,-200.0,9.172e-05,2]
[405290304,1770948633993,-1687.0,9.172e-05,2]
[405290305,1770948634003,-500.0,9.227e-05,2]
[405290306,1770948634012,-500.0,9.227e-05,2]
[405290307,1770948634021,-200.0,9.227e-05,2]
[405290308,1770948634030,-1687.0,9.227e-05,2]
[405290309,1770948634040,-500.0,9.227e-05,2]
[405290310,1770948634049,-1000.0,9.247e-05,2]
[405290311,1770948634059,-316.63739434,9.282e-05,2]
[405290312,1770948634068,-500.0,9.282e-05,2]
[405290313,1770948634079,-200.0,9.282e-05,2]
[405290314,1770948634090,-1687.0,9.282e-05,2]
[405290315,1770948634100,-500.0,9.336e-05,2]
[405290316,1770948634111,-200.0,9.336e-05,2]
[405290317,1770948634125,-1687.0,9.336e-05,2]
[405290318,1770948634134,-500.0,9.391e-05,2]
[405290319,1770948634143,-200.0,9.391e-05,2]
[405290320,1770948634153,-1687.0,9.391e-05,2]
[405290321,1770948634163,-500.0,9.446e-05,2]
[405290322,1770948634172,-200.0,9.446e-05,2]
[405290323,1770948634181,-1687.0,9.446e-05,2]
[405290324,1770948634191,-500.0,9.501e-05,2]
[405290325,1770948634200,-200.0,9.501e-05,2]
[405290326,1770948634211,-1687.0,9.501e-05,2]
[405290327,1770948634220,-500.0,9.501e-05,2]
[405290328,1770948634231,-567.37926716,9.556e-05,2]
[405290329,1770948634241,-207.78924877,9.556e-05,2]
[405290330,1770948634250,-1687.0,9.556e-05,2]
[405290331,1770948634259,-587.0,9.574e-05,2]
[405290332,1770948634269,-433.0,9.574e-05,2]
[405290333,1770948634279,-2351.0,9.574e-05,2]
[405290334,1770948634288,-1687.0,9.61e-05,2]
[405290335,1770948634298,-1687.0,9.665e-05,2]
[405290336,1770948634308,-1687.0,9.72e-05,2]
[405290337,1770948634318,-209.81,9.739e-05,2]
[405290338,1770948634328,-1687.0,9.775e-05,2]
[405290339,1770948634337,-500.0,9.775e-05,2]
[405290340,1770948634347,-1687.0,9.829e-05,2]
[405290341,1770948634357,-434.53,9.844e-05,2]
[405290342,1770948634367,-1699.1660228,9.884e-05,2]
[405290343,1770948634377,-1213.96,9.9e-05,2]
[405290344,1770948634386,-174.46733649,0.0001,2]
[405290345,1770948634396,-174.46733649,0.0001,2]
[405290346,1770948634406,-175.06822215,0.0001,2]
[405290347,1770948634416,-151.0,0.0001,2]
[405290348,1770948634426,-151.0,0.0001,2]
[405290349,1770948634437,-151.0,0.0001,2]
[405290350,1770948634446,-151.0,0.0001,2]
[405290351,1770948634456,-151.0,0.0001,2]
[405290352,1770948634466,-151.0,0.0001,2]
[405290353,1770948634476,-151.0,0.0001,2]
[405290354,1770948634485,-151.0,0.0001,2]
[405290355,1770948634495,-151.0,0.0001,2]
[405290356,1770948634505,-151.0,0.0001,2]
[405290357,1770948634516,-151.0,0.0001,2]
[405290358,1770948634526,-151.0,0.0001,2]
[405290359,1770948634536,-151.0,0.0001,2]
[405290360,1770948634546,-151.0,0.0001,2]
[405290361,1770948634555,-151.0,0.0001,2]
[405290362,1770948634565,-151.0,0.0001,2]
[405290363,1770948634575,-151.0,0.0001,2]
[405290364,1770948634584,-151.0,0.0001,2]
[405290365,1770948634594,-151.0,0.0001,2]
[405290366,1770948634604,-153.95643455,0.0001,2]
[405290367,1770948634613,-417.22433099,0.0001,2]
[405290368,1770948634624,-500.0,0.00010049,2]
[405290369,1770948634634,-697.39,0.00010064,2]
[405290370,1770948634643,-250.0,0.0001019,2]
[405290371,1770948634652,-1000.0,0.00010274,2]
[405290372,1770948634662,-500.0,0.00010323,2]
[405290373,1770948634672,-9999.99,0.00010475,2]
[405290374,1770948634682,-302.0,0.00010531,2]
[405290375,1770948634692,-736.0,0.00010531,2]
[405290376,1770948634701,-3292.0,0.00010531,2]
[405290377,1770948634711,-500.0,0.00010597,2]
[405290378,1770948634720,-393.69,0.00010825,2]
[405290379,1770948634731,-500.0,0.00010871,2]
[405290380,1770948634741,-600.0,0.00010888,2]
[405290381,1770948634751,-190.43,0.00010888,2]
[405290382,1770948634762,-184.33,0.00010959,2]
[405290383,1770948634771,-169.03,0.00010959,2]
[405290384,1770948634781,-450.0,0.00011057,7]
[405290385,1770948634790,-697.39,0.0001107,2]
[405290386,1770948634800,-169.03,0.00011096,2]
[405290387,1770948634809,-51990.50724647,0.00011099,2]
[405290388,1770948634818,-51990.50724647,0.00011099,2]
[405290389,1770948634828,-51990.50724647,0.00011099,2]
[405290390,1770948634837,-39929.0,0.000111,2]
[405290391,1770948634847,-500.0,0.00011145,2]
[405290392,1770948634856,-169.03,0.00011233,2]
[405290393,1770948634866,-3200.48361746,0.0001127,2]
[405290394,1770948634875,-1000.0,0.00011301,2]
[405290395,1770948634885,-51990.50724647,0.0001134,2]
[405290396,1770948634896,-169.03,0.0001137,2]
[405290397,1770948634907,-500.0,0.00011419,2]
[405290398,1770948634921,-169.03,0.00011507,2]
[405290399,1770948634931,-1252.0,0.00011584,2]
[405290400,1770948634941,-4609.0,0.00011585,2]
[405290401,1770948634951,-500.0,0.00011693,2]
[405290402,1770948634962,-5531.0,0.000117,3]
[405290403,1770948634971,-500.0,0.00011967,2]
[405290404,1770948634982,-697.39,0.00012077,2]
[405290405,1770948634992,-51990.50724647,0.0001222,2]
[405290406,1770948635001,-500.0,0.00012241,2]
[405290407,1770948635011,-1000.0,0.00012329,2]
[405290408,1770948635020,-5531.0,0.000124,5]
[405290409,1770948635030,-572.069914,0.00012427,2]
[405290410,1770948635039,-3200.48361746,0.00012434,2]
[405290411,1770948635048,-2000.0,0.000125,2]
[405290412,1770948635057,-500.0,0.00012515,2]
[405290413,1770948635067,-6453.0,0.00012743,2]
[405290414,1770948635076,-2129.0,0.00012747,2]
[405290415,1770948635085,-500.0,0.00012765,2]
[405290416,1770948635094,-227.0,0.00012765,2]
[405290417,1770948635103,-565.0,0.00012765,2]
[405290418,1770948635112,-321.19050027,0.00012788,2]
[405290419,1770948635122,-51990.50724647,0.000131,2]
[405290420,1770948635131,-417.22433098,0.00013204,2]
[405290421,1770948635141,-3240.0,0.00013425,2]
[405290422,1770948635151,-203.0,0.00013532,2]
[405290423,1770948635161,-436.0,0.00013586,2]
[405290424,1770948635169,-339.0,0.00013586,2]
[405290425,1770948635178,-3200.48361746,0.00013598,2]
[405290426,1770948635186,-500.0,0.00013673,2]
[405290427,1770948635196,-500.0,0.00013673,2]
[405290428,1770948635205,-500.0,0.00013673,2]
[405290429,1770948635214,-500.0,0.00013673,2]
[405290430,1770948635223,-500.0,0.00013673,2]
[405290431,1770948635233,-151.85157988,0.00013673,2]
[405290432,1770948635243,-500.0,0.00013673,2]
[405290433,1770948635252,-160.11669161,0.00013673,2]
[405290434,1770948635262,-500.0,0.00013673,2]
[405290435,1770948635272,-166.66792853,0.00013673,2]
[405290436,1770948635282,-571.24633497,0.00013673,2]
[405290437,1770948635291,-155.79926253,0.00013673,2]
[405290438,1770948635301,-500.0,0.00013673,2]
[405290439,1770948635310,-500.0,0.00013673,2]
[405290440,1770948635320,-1199.66537221,0.0001369,2]
[405290441,1770948635329,-156.326,0.00013697,2]
[405290442,1770948635338,-500.0,0.00013698,2]
[405290443,1770948635348,-500.0,0.00013698,2]
[405290444,1770948635358,-500.0,0.00013698,2]
[405290445,1770948635368,-500.0,0.00013698,2]
[405290446,1770948635377,-500.0,0.00013698,2]
[405290447,1770948635387,-500.0,0.00013698,2]
[405290448,1770948635396,-501.88768419,0.00013698,2]
[405290449,1770948635405,-526.46476323,0.00013698,2]
[405290450,1770948635414,-500.0,0.00013698,2]
[405290451,1770948635425,-500.0,0.00013698,2]
[405290452,1770948635434,-500.0,0.00013698,2]
[405290453,1770948635443,-500.0,0.00013698,2]
[405290454,1770948635453,-500.0,0.00013698,2]
[405290455,1770948635462,-500.0,0.00013698,2]
[405290456,1770948635471,-500.0,0.00013698,2]
[405290457,1770948635482,-500.0,0.00013698,2]
[405290458,1770948635491,-500.0,0.00013698,2]
[405290459,1770948635500,-500.0,0.00013698,2]
[405290460,1770948635509,-500.0,0.00013698,2]
[405290461,1770948635519,-500.0,0.00013698,2]
[405290462,1770948635528,-500.0,0.00013698,2]
[405290463,1770948635538,-500.0,0.00013698,2]
[405290464,1770948635547,-315.87882507,0.00013698,2]
[405290465,1770948635556,-581.0,0.00013698,2]
[405290466,1770948635566,-581.0,0.00013698,2]
[405290467,1770948635576,-581.0,0.00013698,2]
[405290468,1770948635585,-581.0,0.00013698,2]
[405290469,1770948635594,-581.0,0.00013698,2]
[405290470,1770948635604,-581.0,0.00013698,2]
[405290471,1770948635613,-581.0,0.00013698,2]
[405290472,1770948635622,-581.0,0.00013698,2]
[405290473,1770948635632,-581.0,0.00013698,2]
[405290474,1770948635641,-581.0,0.00013698,2]
[405290475,1770948635650,-581.0,0.00013698,2]
[405290476,1770948635659,-581.0,0.00013698,2]
[405290477,1770948635668,-581.0,0.00013698,2]
[405290478,1770948635678,-581.0,0.00013698,2]
[405290479,1770948635688,-581.0,0.00013698,2]
[405290480,1770948635698,-581.0,0.00013698,2]
[405290481,1770948635707,-581.0,0.00013698,2]
[405290482,1770948635716,-581.0,0.00013698,2]
[405290483,1770948635725,-581.0,0.00013698,2]
[405290484,1770948635734,-581.0,0.00013698,2]
[405290485,1770948635743,-581.0,0.00013698,2]
[405290486,1770948635752,-581.0,0.00013698,2]
[405290487,1770948635762,-581.0,0.00013698,2]
[405290488,1770948635771,-581.07213972,0.00013698,2]
[405290489,1770948635781,-866.73,0.00013698,2]
[405290490,1770948635790,-866.73,0.00013698,2]
[405290491,1770948635799,-866.73,0.00013698,2]
[405290492,1770948635808,-866.73,0.00013698,2]
[405290493,1770948635817,-866.73,0.00013698,2]
[405290494,1770948635826,-866.73,0.00013698,2]
[405290495,1770948635835,-866.73,0.00013698,2]
[405290496,1770948635844,-866.73,0.00013698,2]
[405290497,1770948635854,-866.73,0.00013698,2]
[405290498,1770948635863,-866.73,0.00013698,2]
[405290499,1770948635872,-866.73,0.00013698,2]
[405290500,1770948635882,-866.73,0.00013698,2]
[405290501,1770948635892,-866.73,0.00013698,2]
[405290502,1770948635901,-866.73,0.00013698,2]
[405290503,1770948635915,-866.73,0.00013698,2]
[405290504,1770948635924,-866.73,0.00013698,2]
[405290505,1770948635934,-866.73,0.00013698,2]
[405290506,1770948635944,-866.73,0.00013698,2]
[405290507,1770948635954,-866.73,0.00013698,2]
[405290508,1770948635964,-866.73,0.00013698,2]
[405290509,1770948635974,-866.73,0.00013698,2]
[405290510,1770948635987,-866.73,0.00013698,2]
[405290511,1770948635997,-866.73,0.00013698,2]
[405290512,1770948636007,-866.78276592,0.00013698,2]
[405290513,1770948636182,-500.0,0.00013698,2]
[405290514,1770948636192,-500.0,0.00013698,2]
[405290515,1770948636202,-500.0,0.00013698,2]
[405290516,1770948636212,-500.0,0.00013698,2]
[405290517,1770948636222,-500.0,0.00013698,2]
[405290518,1770948636233,-500.0,0.00013698,2]
[405290519,1770948636243,-500.0,0.00013698,2]
[405290520,1770948636252,-500.0,0.00013698,2]
[405290521,1770948636262,-500.0,0.00013698,2]
[405290522,1770948636271,-500.0,0.00013698,2]
[405290523,1770948636281,-500.0,0.00013698,2]
[405290524,1770948636291,-500.0,0.00013698,2]
[405290525,1770948636300,-500.0,0.00013698,2]
[405290526,1770948636311,-500.0,0.00013698,2]
[405290527,1770948636320,-500.0,0.00013698,2]
[405290528,1770948636329,-500.0,0.00013698,2]
[405290529,1770948636339,-500.0,0.00013698,2]
[405290530,1770948636349,-500.0,0.00013698,2]
[405290531,1770948636359,-500.0,0.00013698,2]
[405290532,1770948636369,-500.0,0.00013698,2]
[405290533,1770948636380,-500.0,0.00013698,2]
[405290534,1770948636390,-302.22282336,0.00013698,2]
[405290535,1770948636401,-500.0,0.00013698,2]
[405290536,1770948636411,-500.0,0.00013698,2]
[405290537,1770948636421,-348.20164544,0.00013698,2]
[405290538,1770948636431,-500.0,0.00013698,2]
[405290539,1770948636441,-500.0,0.00013698,2]
[405290540,1770948636450,-418.28571539,0.00013698,2]
[405290541,1770948636460,-500.0,0.00013698,2]
[405290542,1770948636470,-500.0,0.00013698,2]
[405290543,1770948636480,-570.74622544,0.00013698,2]
[405290544,1770948636490,-500.0,0.00013698,2]
[405290545,1770948636500,-523.64736464,0.00013698,2]
[405290546,1770948636510,-500.0,0.00013698,2]
[405290547,1770948636520,-500.0,0.00013698,2]
[405290548,1770948636530,-511.21151318,0.00013698,2]
[405290549,1770948636539,-722.32,0.00013698,2]
[405290550,1770948636549,-722.32,0.00013698,2]
[405290551,1770948636558,-722.32,0.00013698,2]
[405290552,1770948636568,-722.32,0.00013698,2]
[405290553,1770948636577,-722.32,0.00013698,2]
[405290554,1770948636587,-722.32,0.00013698,2]
[405290555,1770948636596,-722.32,0.00013698,2]
[405290556,1770948636606,-722.32,0.00013698,2]
[405290557,1770948636615,-722.32,0.00013698,2]
[405290558,1770948636625,-722.32,0.00013698,2]
[405290559,1770948636634,-722.32,0.00013698,2]
[405290560,1770948636644,-591.31,0.00013698,2]
[405290561,1770948636653,-722.32,0.00013698,2]
[405290562,1770948636663,-591.31,0.00013698,2]
[405290563,1770948636672,-722.32,0.00013698,2]
[405290564,1770948636682,-591.31,0.00013698,2]
[405290565,1770948636691,-722.32,0.00013698,2]
[405290566,1770948636700,-722.32,0.00013698,2]
[405290567,1770948636710,-591.31,0.00013698,2]
[405290568,1770948636720,-722.32,0.00013698,2]
[405290569,1770948636731,-591.31,0.00013698,2]
[405290570,1770948636741,-722.32,0.00013698,2]
[405290571,1770948636753,-591.31,0.00013698,2]
[405290572,1770948636764,-591.31,0.00013698,2]
[405290573,1770948636774,-591.31,0.00013698,2]
[405290574,1770948636785,-591.31,0.00013698,2]
[405290575,1770948636794,-591.31,0.00013698,2]
[405290576,1770948636805,-591.31,0.00013698,2]
[405290577,1770948636814,-591.31,0.00013698,2]
[405290578,1770948636825,-591.31,0.00013698,2]
[405290579,1770948636835,-591.31,0.00013698,2]
[405290580,1770948636844,-591.31,0.00013698,2]
[405290581,1770948636854,-591.31,0.00013698,2]
[405290582,1770948636863,-591.31,0.00013698,2]
[405290583,1770948636872,-1197.3,0.00013698,2]
[405290584,1770948636882,-1197.3,0.00013698,2]
[405290585,1770948636892,-1197.3,0.00013698,2]
[405290586,1770948636902,-1197.3,0.00013698,2]
[405290587,1770948636911,-1197.3,0.00013698,2]
[405290588,1770948636925,-1197.3,0.00013698,2]
[405290589,1770948636934,-1197.3,0.00013698,2]
[405290590,1770948636944,-1197.3,0.00013698,2]
[405290591,1770948636954,-1197.3,0.00013698,2]
[405290592,1770948636965,-1197.3,0.00013698,2]
[405290593,1770948636974,-1197.3,0.00013698,2]
[405290594,1770948636985,-1197.3,0.00013698,2]
[405290595,1770948636993,-1197.3,0.00013698,2]
[405290596,1770948637002,-1197.3,0.00013698,2]
[405290597,1770948637011,-1197.3,0.00013698,2]
[405290598,1770948637019,-1197.3,0.00013698,2]
[405290599,1770948637028,-1197.3,0.00013698,2]
[405290600,1770948637037,-500.0,0.00013698,2]
[405290601,1770948637045,-500.0,0.00013698,2]
[405290602,1770948637054,-500.0,0.00013698,2]
[405290603,1770948637062,-500.0,0.00013698,2]
[405290604,1770948637071,-500.0,0.00013698,2]
[405290605,1770948637079,-500.0,0.00013698,2]
[405290606,1770948637088,-500.0,0.00013698,2]
[405290607,1770948637096,-500.0,0.00013698,2]
[405290608,1770948637105,-500.0,0.00013698,2]
[405290609,1770948637114,-500.0,0.00013698,2]
[405290610,1770948637124,-500.0,0.00013698,2]
[405290611,1770948637138,-500.0,0.00013698,2]
[405290612,1770948637151,-500.0,0.00013698,2]
[405290613,1770948637160,-500.0,0.00013698,2]
[405290614,1770948637170,-606.16370174,0.00013698,2]
[405290616,1770948637180,-1137.19,0.00013698,2]
[405290617,1770948637190,-1137.19,0.00013698,2]
[405290618,1770948637199,-1137.19,0.00013698,2]
[405290619,1770948637209,-1137.19,0.00013698,2]
[405290620,1770948637219,-1137.19,0.00013698,2]
[405290621,1770948637229,-1137.19,0.00013698,2]
[405290622,1770948637239,-1137.19,0.00013698,2]
[405290623,1770948637248,-1137.19,0.00013698,2]
[405290624,1770948637258,-1137.19,0.00013698,2]
[405290625,1770948637267,-1137.19,0.00013698,2]
[405290626,1770948637276,-1137.19,0.00013698,2]
[405290627,1770948637285,-1137.19,0.00013698,2]
[405290628,1770948637295,-1137.19,0.00013698,2]
[405290629,1770948637305,-1137.19,0.00013698,2]
[405290631,1770948637314,-1137.19,0.00013698,2]
[405290632,1770948637323,-1137.19,0.00013698,2]
[405290633,1770948637333,-1137.19,0.00013698,2]
[405290634,1770948637343,-500.0,0.00013698,2]
[405290635,1770948637353,-500.0,0.00013698,2]
[405290636,1770948637362,-500.0,0.00013698,2]
[405290637,1770948637372,-500.0,0.00013698,2]
[405290638,1770948637382,-500.0,0.00013698,2]
[405290639,1770948637392,-500.0,0.00013698,2]
[405290640,1770948637403,-500.0,0.00013698,2]
[405290641,1770948637414,-500.0,0.00013698,2]
[405290642,1770948637424,-500.0,0.00013698,2]
[405290643,1770948637433,-500.0,0.00013698,2]
[405290644,1770948637443,-500.0,0.00013698,2]
[405290645,1770948637453,-500.0,0.00013698,2]
[405290646,1770948637462,-429.84412475,0.00013698,2]
[405290647,1770948637472,-500.0,0.00013698,2]
[405290648,1770948637482,-500.0,0.00013698,2]
[405290649,1770948637491,-500.0,0.00013698,2]
[405290650,1770948637501,-1410.82,0.00013698,2]
[405290651,1770948637511,-500.0,0.00013698,2]
[405290652,1770948637521,-1410.82,0.00013698,2]
[405290653,1770948637531,-500.0,0.00013698,2]
[405290654,1770948637540,-1410.82,0.00013698,2]
[405290655,1770948637550,-500.0,0.00013698,2]
[405290656,1770948637559,-1410.82,0.00013698,2]
[405290657,1770948637570,-502.60181958,0.00013698,2]
[405290658,1770948637581,-1410.82,0.00013698,2]
[405290659,1770948637591,-1410.82,0.00013698,2]
[405290660,1770948637601,-1410.82,0.00013698,2]
[405290661,1770948637612,-1410.82,0.00013698,2]
[405290662,1770948637622,-1410.82,0.00013698,2]
[405290663,1770948637632,-1410.82,0.00013698,2]
[405290664,1770948637642,-1410.82,0.00013698,2]
[405290666,1770948637652,-1410.82,0.00013698,2]
[405290668,1770948637661,-1410.82,0.00013698,2]
[405290670,1770948637671,-1410.82,0.00013698,2]
[405290671,1770948637681,-1410.82,0.00013698,2]
[405290672,1770948637690,-1410.82,0.00013698,2]
[405290673,1770948637699,-1410.82,0.00013698,2]
[405290674,1770948637709,-821.28,0.00013698,2]
[405290675,1770948637719,-821.28,0.00013698,2]
[405290676,1770948637730,-821.28,0.00013698,2]
[405290677,1770948637739,-821.28,0.00013698,2]
[405290678,1770948637749,-821.28,0.00013698,2]
[405290679,1770948637759,-821.28,0.00013698,2]
[405290680,1770948637768,-821.28,0.00013698,2]
[405290681,1770948637778,-821.28,0.00013698,2]